Cogmind - Beta 13 @@@ ROGUE MODE // 2024.04.10 @ 19:58:11 Player: michaelman Result: Destroyed by H-66 Slayer with Gauss Rifle Performance ------------- Evolutions (1) 500 Regions Visited (5) 1000 Robots Destroyed (22) 110 Value Destroyed (640) 640 Prototype IDs (0) 0 Alien Tech Used (0) 0 Bonus (452) 452 TOTAL SCORE: 2702 Bonus ------- Follower Combat Kills 34 Met Imprinter 300 Was Imprinted 300 Friendly Fire -182 Cogmind --------- Core Integrity 0/400 Matter 291/300 Energy 99/100 System Corruption 10% Temperature Cool (0) Movement Core (50) Location -6/Proximity Caves Parts ------- > --- POWER (1) -------- (None) > --- PROPULSION (3) --- (None) > --- UTILITY (2) ------ (None) > --- WEAPON (3) ------- (None) > --- INVENTORY (5) ---- Light Fission Core Medium Treads Medium Armor Plating Grenade Launcher Rocket Launcher Peak State ------------ > --- POWER ------------ Angular Momentum Engine > --- PROPULSION ------- Aluminum Leg Aluminum Leg Carbon-fiber Leg > --- UTILITY ---------- Improved Heat Sink Medium Storage Unit > --- WEAPON ----------- Particle Gun Heavy Assault Rifle Rocket Launcher > --- INVENTORY -------- Light Fission Core Medium Armor Plating Particle Gun Grenade Launcher Scythe [Rating: 21] Favorites ----------- Power Ion Engine Engine Ion Engine Propulsion Aluminum Leg Leg Aluminum Leg Utility Heat Sink Device Heat Sink Storage Medium Storage Unit Weapon Heavy Assault Rifle Energy Gun Small Laser Ballistic Gun Heavy Assault Rifle Launcher Rocket Launcher Slashing Weapon Scythe Build | -11 -10 -9 -9 -7 -6 ------- Run | Yrd Mat Mat Min Zio Pro Slots Evolved 2 | . . 2 . . . Power . | . . . . . . Propulsion 1 | . . 1 . . . Utility . | . . . . . . Weapon 1 | . . 1 . . . Parts Attached 34 | 6 3 12 3 . 10 Power 6 | 1 1 1 1 . 2 Engine 6 | 1 1 1 1 . 2 Core . | . . . . . . Reactor . | . . . . . . Propulsion 10 | 2 1 4 1 . 2 Treads . | . . . . . . Leg 10 | 2 1 4 1 . 2 Wheel . | . . . . . . Hover . | . . . . . . Flight . | . . . . . . Utility 6 | 1 . 4 . . 1 Device 3 | . . 2 . . 1 Storage 3 | 1 . 2 . . . Processor . | . . . . . . Hackware . | . . . . . . Protection . | . . . . . . Artifact . | . . . . . . Weapon 12 | 2 1 3 1 . 5 Energy Gun 4 | . . 2 . . 2 Energy Cannon . | . . . . . . Ballistic Gun 5 | 2 1 1 1 . . Ballistic Cannon . | . . . . . . Launcher 2 | . . . . . 2 Special Weapon . | . . . . . . Impact Weapon . | . . . . . . Slashing Weapon 1 | . . . . . 1 Piercing Weapon . | . . . . . . Special Melee Weapon . | . . . . . . Unidentified Prototypes . | . . . . . . Parts Lost 17 | . . 2 3 . 12 Power 3 | . . . 1 . 2 Propulsion 6 | . . 1 1 . 4 Utility 1 | . . . . . 1 Weapon 7 | . . 1 1 . 5 Highest Loss Streak 6 | . . 1 3 . 6 To Critical Strikes . | . . . . . . Average Slot Usage (%) 91 | . 78 87 100 100 66 Engine 11 | . 14 11 11 11 7 Leg 31 | . 28 32 33 33 22 Device 8 | . . 6 11 11 6 Storage 11 | . 14 11 11 11 7 Energy Gun 9 | . . 15 11 11 5 Ballistic Gun 19 | . 21 10 22 22 11 Naked Turns 92 | . . . . . 92 Heaviest Build 34 | 13 13 25 25 23 34 Greatest Support 35 | 20 20 30 30 30 35 Greatest Overweight (x) 3 | 3 . . . . 1 Average Overweight (x) . | . . . . . . Largest Inventory Capacity 10 | 8 8 10 10 10 10 Average Capacity 9 | 7 8 8 10 10 8 Most Carried 9 | 5 6 8 6 6 9 Average Carried 5 | 2 3 5 4 5 5 Final Capacity 10 | 8 8 10 10 10 5 Final Carried 6 | 3 4 6 5 6 5 Class Distribution -------------------- 70% | Scavenger-Gunner 27% | Mutant Dominant Class ---------------- Mutant | -10/Materials Scavenger-Gunner | -9/Materials Scavenger-Gunner | -9/Mines Scavenger-Gunner | -7/Zion Mutant | -6/Proximity Caves Resources | -11 -10 -9 -9 -7 -6 ----------- Run | Yrd Mat Mat Min Zio Pro Matter Collected 707 | 210 79 196 79 . 143 Remotely . | . . . . . . Salvage Created 819 | . 79 324 100 . 316 Parts 41 | . 5 17 10 . 9 Haulers Intercepted . | . . . . . . Recyclers Shooed . | . . . . . . Parts Field Recycled . | . . . . . . Retrieved Matter . | . . . . . . Parts Self-Destructed 10 | . . . . 3 7 Prevented 1 | . . . . . 1 Kills | -11 -10 -9 -9 -7 -6 ------- Run | Yrd Mat Mat Min Zio Pro Combat Hostiles Destroyed 19 | . 2 6 6 . 5 Guns 16 | . 2 6 6 . 2 AOE 3 | . . . . . 3 Classes Destroyed 8 | . 1 2 1 . 4 Recycler 1 | . . 1 . . . Mechanic 1 | . . . . . 1 Swarmer 7 | . . . 6 . 1 Grunt 7 | . 2 4 . . 1 Brawler 1 | . . . . . 1 Duelist 1 | . . . . . 1 Sentry 3 | . . 2 . . 1 Mutant 1 | . . . . . 1 Best Kill Streak 4 | . 1 3 4 . 3 Combat Bots Only 4 | . 1 3 4 . 3 Max Kills in Single Turn 2 | . 1 1 2 . 2 Gunslinging . | . . . . . . Exploded 2 | . . . . . 2 Melee . | . . . . . . Uniques/NPCs Destroyed . | . . . . . . Combat | -11 -10 -9 -9 -7 -6 -------- Run | Yrd Mat Mat Min Zio Pro Hostile Shots Fired 179 | . 28 36 49 . 66 Missed 40 | . 4 9 13 . 14 Damage Taken 2071 | . 341 321 285 . 1124 Core 438 | . 34 10 25 . 369 Absorbed by Shields . | . . . . . . Core Remaining (%) 93 | 100 86 . . . . Volleys Fired 64 | . 16 25 9 . 14 Largest 3 | . 2 3 3 . 3 Hottest 130 | . 40 125 86 . 130 Shots Fired 152 | . 32 65 27 . 28 Gun 146 | . 32 65 27 . 22 Cannon . | . . . . . . Launcher 6 | . . . . . 6 Special . | . . . . . . Kinetic 86 | . 32 25 18 . 11 Thermal 60 | . . 40 9 . 11 Explosive 6 | . . . . . 6 Electromagnetic . | . . . . . . Robot Hit Streak 12 | . 8 12 5 . 7 Robot Miss Streak 6 | . 2 2 6 . 3 Penetration Max . | . . . . . . Secondary Targets 3 | . 1 . 1 . 1 Max Gunslinging Chain 1 | . 1 . 1 . 1 Shots Hit Robots 96 | . 21 46 12 . 17 Core Hits 45 | . 5 13 6 . 21 Critical Kills 1 | . . 1 . . . Critical Parts Destroyed . | . . . . . . Critical Strikes 3 | . . 3 . . . Burn 2 | . . 2 . . . Destroy 1 | . . 1 . . . Melee Attacks 1 | . . . . . 1 Impact . | . . . . . . Slashing 1 | . . . . . 1 Piercing . | . . . . . . Sneak Attacks . | . . . . . . Combat Hostiles . | . . . . . . Follow-up Attacks . | . . . . . . Damage Inflicted 1603 | . 239 521 199 . 644 Guns 1187 | . 239 521 189 . 238 Cannons . | . . . . . . Explosions 406 | . . . . . 406 Melee . | . . . . . . Ramming 10 | . . . 10 . . Kinetic 638 | . 239 144 120 . 135 Thermal 549 | . . 377 69 . 103 Explosive 406 | . . . . . 406 Electromagnetic . | . . . . . . Impact . | . . . . . . Slashing . | . . . . . . Piercing . | . . . . . . Highest Corruption 10 | . . . . . 10 Average Corruption 9 | . . . . . 9 Corruption Purged . | . . . . . . Corruption Blocked . | . . . . . . Effects 5 | . . . . . 5 Message Errors 3 | . . . . . 3 Matter Fused 2 | . . . . . 2 Overload Shots . | . . . . . . Overflow Damage . | . . . . . . Projectiles . | . . . . . . Explosions . | . . . . . . Melee . | . . . . . . Knockbacks . | . . . . . . Impact . | . . . . . . Kinetic . | . . . . . . Secondary . | . . . . . . Self-Inflicted Damage 31 | . . . . . 31 Shots 2 | . . . . . 2 Rammed . | . . . . . . Targets Rammed 1 | . . . 1 . . Kicked 1 | . . . 1 . . Crushed . | . . . . . . Highest Temperature 223 | . 36 223 . . 82 Average Temperature 75 | . 17 105 . . 44 Received Heat Transfer 564 | . 189 147 . . 228 Siege Activations . | . . . . . . Robots Corrupted . | . . . . . . Combat Hostiles . | . . . . . . Parts Fried . | . . . . . . Impact Corruptions . | . . . . . . Robots Melted . | . . . . . . Combat Hostiles . | . . . . . . Parts Melted 2 | . . 1 . . 1 Heat Transferred 1449 | . . 1052 150 . 247 Parts Sabotaged . | . . . . . . Parts Stolen . | . . . . . . Parts Stripped . | . . . . . . Power Chain Reactions . | . . . . . . Alert | -11 -10 -9 -9 -7 -6 ------- Run | Yrd Mat Mat Min Zio Pro Peak Influence 184 | . 65 168 184 . . Initial 15 | . . 12 15 . . Average 58 | . 28 50 115 . . Maximum Alert Level . | . . . . . . Low Security (%) 100 | 100 100 100 100 . . Level 1 . | . . . . . . Level 2 . | . . . . . . Level 3 . | . . . . . . Level 4 . | . . . . . . Level 5 . | . . . . . . High Security . | . . . . . . Max Security . | . . . . . . Squads Dispatched 2 | . 1 . . . 1 Investigation . | . . . . . . Extermination . | . . . . . . Reinforcement 1 | . 1 . . . . Assault 1 | . . . . . 1 Garrison . | . . . . . . Intercept . | . . . . . . Searches Triggered . | . . . . . . Construction Impeded . | . . . . . . Haulers Reinforced . | . . . . . . Active Scanning Responses . | . . . . . . Cargo Convoy Interrupts . | . . . . . . Stealth | -11 -10 -9 -9 -7 -6 --------- Run | Yrd Mat Mat Min Zio Pro Distress Signals . | . . . . . . Communications Jammed . | . . . . . . Distress Signals . | . . . . . . Times Spotted 36 | . 7 7 8 . 14 Peak Tracking Total 6 | . 3 3 4 . 6 Tactical Retreats 5 | . 1 2 . . 2 Traps | -11 -10 -9 -9 -7 -6 ------- Run | Yrd Mat Mat Min Zio Pro Traps Triggered 2 | . 2 . . . . Indirectly . | . . . . . . Trap Hack Attempts . | . . . . . . Triggered . | . . . . . . Disarmed . | . . . . . . Reprogrammed . | . . . . . . Reused . | . . . . . . Traps Extracted . | . . . . . . Installed . | . . . . . . Triggered . | . . . . . . Machines | -11 -10 -9 -9 -7 -6 ---------- Run | Yrd Mat Mat Min Zio Pro Machines Disabled . | . . . . . . Max in Single Turn . | . . . . . . Machines Repaired . | . . . . . . Machines Dismantled . | . . . . . . Machines Sabotaged . | . . . . . . Overloaded Fab Kills . | . . . . . . Hacking | -11 -10 -9 -9 -7 -6 --------- Run | Yrd Mat Mat Min Zio Pro Machines Accessed 2 | . . 1 . 1 . Terminals . | . . . . . . Fabricators . | . . . . . . Repair Stations . | . . . . . . Recycling Units 1 | . . 1 . . . Scanalyzers . | . . . . . . Garrison Access . | . . . . . . Total Hacks 8 | . . 2 . 6 . Successful 8 | . . 2 . 6 . Failed . | . . . . . . Catastrophic . | . . . . . . Database Lockouts . | . . . . . . Manual . | . . . . . . Terminals . | . . . . . . Fabricators . | . . . . . . Repair Stations . | . . . . . . Recycling Units 2 | . . 2 . . . Scanalyzers . | . . . . . . Garrison Access . | . . . . . . Terminal Hacks 6 | . . . . 6 . Part Schematic 6 | . . . . 6 . Fabricator Hacks . | . . . . . . Repair Station Hacks . | . . . . . . Recycling Unit Hacks 2 | . . 2 . . . Report Inventory 1 | . . 1 . . . Retrieve Components 1 | . . 1 . . . Scanalyzer . | . . . . . . Garrison Access Hacks . | . . . . . . Unauthorized Hacks . | . . . . . . Terminals . | . . . . . . Fabricators . | . . . . . . Repair Stations . | . . . . . . Recycling Units . | . . . . . . Scanalyzers . | . . . . . . Garrison Access . | . . . . . . Data Cores Recovered . | . . . . . . Used . | . . . . . . Hacking Detections . | . . . . . . Full Trace Events . | . . . . . . Feedback Events . | . . . . . . Feedback Blocked . | . . . . . . Robot Schematics Acquired 3 | . . . . 3 . Robots Built . | . . . . . . Authchips . | . . . . . . Time . | . . . . . . Total Robot Build Rating . | . . . . . . Part Schematics Acquired 21 | . . . . 21 . Parts Built . | . . . . . . Authchips . | . . . . . . Time . | . . . . . . Total Part Build Rating . | . . . . . . Parts Repaired . | . . . . . . Time . | . . . . . . Parts Recycled . | . . . . . . Recycled Matter . | . . . . . . Retrieved Matter . | . . . . . . Retrieved Components 2 | . . 2 . . . Parts Scanalyzed . | . . . . . . Part Schematics Acquired . | . . . . . . Parts Damaged . | . . . . . . Bothacking | -11 -10 -9 -9 -7 -6 ------------ Run | Yrd Mat Mat Min Zio Pro Used RIF Installer . | . . . . . . Robots Hacked . | . . . . . . Non-combat . | . . . . . . Combat . | . . . . . . Robot Hacks Applied . | . . . . . . Relay Couplers Released . | . . . . . . Fabnet Peak Effective % . | . . . . . . Robots Rewired . | . . . . . . Allies Hacked . | . . . . . . Hacks Repelled . | . . . . . . Allies | -11 -10 -9 -9 -7 -6 -------- Run | Yrd Mat Mat Min Zio Pro Total Allies 7 | . . . 3 4 . Largest Group 6 | . . . 3 6 6 Highest-Rated Group 182 | . . . 40 182 182 Highest-Rated Ally 39 | . . . 16 39 39 Total Orders . | . . . . . . Ally Attacks 13 | . . . 3 . 10 Total Damage 317 | . . . 38 . 279 Kills 4 | . . . 2 . 2 Allies Corrupted 1 | . . . . . 1 Allies Melted . | . . . . . . Intel | -11 -10 -9 -9 -7 -6 ------- Run | Yrd Mat Mat Min Zio Pro Robot Analysis Total . | . . . . . . Derelict Logs Recovered 3 | . . . 1 1 1 Drone Launches . | . . . . . . Drone Recoveries . | . . . . . . Exploration | -11 -10 -9 -9 -7 -6 ------------- Run | Yrd Mat Mat Min Zio Pro Turns Passed 3381 | 78 492 544 407 1543 317 Spaces Moved 2536 | 45 289 325 309 1253 315 Core 199 | 17 . . . . 182 Treads . | . . . . . . Legs 2337 | 28 289 325 309 1253 133 Wheels . | . . . . . . Hover . | . . . . . . Flight . | . . . . . . Fastest Speed 50 | 50 120 120 120 120 50 Average Speed 115 | 123 120 120 120 120 80 Slowest Speed 200 | 200 120 120 120 120 190 Overloaded Moves . | . . . . . . Propulsion Burnouts . | . . . . . . Robots Hopped . | . . . . . . Cave-ins Triggered . | . . . . . . Exploration Rate (%) 45 | 4 36 23 80 89 41 Regions Visited 5 Branch Regions 3 Pre-discovered Areas 2 | . . . . 2 . Known Exits Taken . | . . . . . . Unknown Exits Taken 5 | 1 1 1 1 1 . Scrap Searched 6 | . . . 1 3 2 Spaces Dug . | . . . . . . Terrain Destroyed 36 | . . . . . 36 Melee . | . . . . . . Projectile . | . . . . . . AOE 36 | . . . . . 36 Terrain Rammed . | . . . . . . Walls Destroyed . | . . . . . . Machines Disabled . | . . . . . . Actions | -11 -10 -9 -9 -7 -6 --------- Run | Yrd Mat Mat Min Zio Pro Total 2873 | 68 406 430 324 1293 352 Wait 197 | 7 91 56 1 38 4 Move 2531 | 44 288 324 308 1252 315 Hop . | . . . . . . Pick Up 32 | 10 4 7 2 2 7 Fast Attach 3 | . 1 2 . . . Attach 22 | 6 1 5 3 . 7 Detach . | . . . . . . Swap 9 | . 1 5 . . 3 Drop 13 | 1 4 6 . 1 1 Fire 64 | . 16 25 9 . 14 Melee 1 | . . . . . 1 Ram . | . . . . . . Kick 1 | . . . 1 . . Crush . | . . . . . . Escape Stasis . | . . . . . . Rewire . | . . . . . . Trap . | . . . . . . Miscellaneous . | . . . . . . Route ------- -11/Scrapyard -10/Materials -9/Materials -9/Mines (discovered 4 exits: [*Mat x2] / [*Exi] / *Zio) -7/Zion -6/Proximity Caves History --------- Turn | Location | Event 39 | -11/Scrapyard | Discovered new exit (range 15) 79 | -11/Scrapyard | Entered Materials 308 | -10/Materials | Build established: Mutant 426 | -10/Materials | Discovered new exit (range 5) 571 | -10/Materials | Entered another Materials area 571 | -9/Materials | Evolved 2 slots: Propulsion x1, Weapon x1 631 | -9/Materials | Discovered new exit (range 9) 1115 | -9/Materials | Entered Mines 1161 | -9/Mines | Lost 3 parts (1p1n1w) 1173 | -9/Mines | Received a Rocket Launcher from a helpful Derelict 1272 | -9/Mines | Assisted by bots powering up and referring to "LRC-V3" 1277 | -9/Mines | Learned Materials garrison access intel 1295 | -9/Mines | Discovered new exit (range 6) 1380 | -9/Mines | Discovered new exit (range 12) 1393 | -9/Mines | Deemed a non-threat by the Exiles lab entrance 1394 | -9/Mines | Discovered new exit (range 5) 1399 | -9/Mines | Build established: Scavenger-Gunner 1513 | -9/Mines | A Derelict revealed a hidden shortcut to a safe place 1522 | -9/Mines | Entered Zion 1522 | -7/Zion | Accompanied by 2 allies 1613 | -7/Zion | Learned location of Warlord (-4) 1912 | -7/Zion | Learned Factory security intel 1974 | -7/Zion | Given A8's code to call for help 2067 | -7/Zion | Imprinted 2070 | -7/Zion | Declared Zion's savior 3020 | -7/Zion | Discovered new exit (range 10) 3065 | -7/Zion | Entered Proximity Caves 3065 | -6/Proximity Caves | Accompanied by 6 allies 3170 | -6/Proximity Caves | Attracted the attention of an 0b10 outpost 3239 | -6/Proximity Caves | Lost 5 allies 3246 | -6/Proximity Caves | Lost 6 parts (1p2n1u2w) 3286 | -6/Proximity Caves | System corruption reached 10% 3290 | -6/Proximity Caves | Released all parts (4) 3292 | -6/Proximity Caves | Learned Factory garrison access intel 3321 | -6/Proximity Caves | Lost 6 parts (1p2n3w) 3338 | -6/Proximity Caves | Core integrity fell below 50% 3373 | -6/Proximity Caves | Core integrity fell below 20% 3382 | -6/Proximity Caves | Destroyed by H-66 Slayer with Gauss Rifle Last Messages --------------- 03290_ Released Carbon-fiber Leg. 03290_ Released Med. Storage Unit. 03290_ Released Imp. Heat Sink. 03291_ The unstable cave ceiling collapses. 03292_ Acquired derelict log, extracted data. Data stored: Factory garrison access intel. 03296_ S|GDJBXF3#1IYALXSCD%LSEO,9LM&>YGVVVB9QX 03322_ Q1AX8CDDU&||PEDXDST:VEFS 03337_ Acquired Med. Treads. 03337_ Penetrated by Slug. 03345_ Acquired 18 matter. 03350_ System corrupted: Matter fused (-6). 03351_ Acquired 6 matter. 03356_ Searching scrap... 03356_ Found Deuterium Engine. 03356_ Found 27 Matter. 03360_ Slug penetrates Wall. 03366_ System corrupted: Matter fused (-9). 03371_ Penetrated by Slug. 03381_ Slug penetrates Wall. Map ----- +----------------------------------------------------+ | ?????????????????????????????????????????????????? | | ?????????????????????????????????????????????????? | | ?????????????????????????????????????????????????? | | ?????????????????????????????????????????????????? | | ?????????????????????????????????????????????????? | | ?????????????????????????????????????????????????? | | ?????????????????????????????????????????????????? | | ?????????????????????????????????????????????????? | | ?????????????????????????????????????????????????? | | ?????????????????????????????????????????????????? | | ?????????????????????????????????????????????????? | | #????###???????????????######????????????????????? | | ????## #????????##????## ###??????????????????? | | ??### #????????? ???# #??????????????????? | | ?## #??????????? ### ##?????????????????? | | ?# ##???? #????? #?????????????????? | | ## ! ##%! #??????? ##????????????????? | | !%* ! #????????# ###??????????????? | | ##### #????????# ##?????????????? | | ## #?????? ##????????# #?????????????? | | ?# #???????????#?????# #?????????????? | | ?# #??????## ##$##### #??????????????? | | ?#!%##?????# ## ##??????????????? | | ?# ####?# ### ##???????????????? | | ?# #?# #### #######????????????????? | | ### #?## ????## @ ##????????????????????? | | #?# #?????????# ##???????????????????? | | ## ##???????## ##??????????????????? | | ##?????## #####??????????????? | | ####### hh## ##?????????????? | | ### #### #?????????????? | | ###### #??## #?????????????? | | ##???#### #?????????????? | | *% ###???????######?????????????? | | #### ###### ##????????????????????????????? | | #???# #????## m#?????????????????????????????? | | #????# #?????## #????????????????????????????? | | #?????# ??????## ??????????????????????????? | | ?????? ???????### ????????????????????????? | | ?????? ????????? ???????????????????????? | | ?????? ?????????? ??????????????????????? | | ?????? ?????????? ??????????????????????? | | ?????? ?????????? ???????????????????????? | | ?????? ?????????# ???????????????????????? | | ?????? ??????????#? ?????????????????????????? | | ?????? ???????????????????????????????????????? | | ?????? ???????????????????????????????????????? | | ?????? #???????????????????????????????????????? | | ??????###????????????????????????????????????????? | | ?????????????????????????????????????????????????? | +----------------------------------------------------+ Best States ------------- Heat Dissipation 42 Energy Generation 18 Energy Capacity 300 Matter Stores 300 Matter Capacity 300 Sight Range 16 Terrain Scan Density 10 Evasion (%) 55 Item Schematics ----------------- Hvy. Phase Cannon | -7/Zion | Archive Mak. Axe | -7/Zion | Archive Mak. Transmission Jammer | -7/Zion | Archive Mak. Hammer | -7/Zion | Archive System Guard | -7/Zion | Archive Spear | -7/Zion | Archive Adv. Heat Sink | -7/Zion | Archive Component Analysis Suite | -7/Zion | Archive Enh. Optical Array | -7/Zion | Archive Chainsword | -7/Zion | Archive Imp. Launcher Guidance Computer | -7/Zion | Archive Imp. Reaction Control System | -7/Zion | Archive Mak. Hacking Suite | -7/Zion | Archive Mak. Laser | -7/Zion | Archive Stasis Canceller | -7/Zion | Archive Riot Gun | -7/Zion | Free Hvy. Riot Gun | -7/Zion | Free Barrage Gun | -7/Zion | Free Battle Cannon | -7/Zion | Free Flamer | -7/Zion | Free Ripper | -7/Zion | Free Robot Schematics ------------------ R-06 Scavenger | -7/Zion | Archive L-41 Fighter | -7/Zion | Archive K-01 Serf | -7/Zion | Archive Fabricated ------------ Nothing Alien Tech Used ----------------- None Achievements -------------- None Challenges ------------ None Game ------ Seed BiomechanicalXenonWings Manual? 0 Play Time 00:34:08 Cumulative 12.2 hours Start 2024.04.10 @ 19:23:53 End 2024.04.10 @ 19:58:11 Sessions 1 Manual Loads 0 Difficulty Rogue Special Mode None Game No. 21 Rogue 21 Adventurer 0 Explorer 0 Win Type - Total 0 Types 0/0/0/0/0/0/0/0/0 Lore% 10 Gallery% 15 Achievement% 15 Wizard Run 0 Options --------- Layout 0 ASCII 0 Keyboard 0 Movement Mouse Keybinds 0 Fullscreen 2 Font 18/SmallcapsGlow Map View 38x25 Zoom Use 99% Tactical HUD 1 Map Filters NONE Filters NONE Steam 1 RUN: a79d7068-8a31-44a0-bc43-ba3754bfb2a1